Cogmind - Beta 13 @@@ ROGUE MODE // 2024.04.03 @ 15:48:13 Player: Ashlemon Result: Destroyed by D-53 Grenadier with Mini Grenade Launcher Performance ------------- Evolutions (0) 0 Regions Visited (2) 400 Robots Destroyed (5) 25 Value Destroyed (50) 50 Prototype IDs (0) 0 Alien Tech Used (0) 0 Bonus (0) 0 TOTAL SCORE: 475 Bonus ------- None Cogmind --------- Core Integrity 0/250 Matter 196/300 Energy 100/100 System Corruption 1% Temperature Cool (0) Movement Core (400) Ox7 Location -10/Mines Parts ------- > --- POWER (1) -------- (None) > --- PROPULSION (2) --- (None) > --- UTILITY (2) ------ Large Storage Unit Structural Scanner > --- WEAPON (2) ------- Mining Claw > --- INVENTORY (15) --- Ion Engine Light Ion Engine Light Ion Engine Aluminum Leg Aluminum Leg Small Storage Unit Huge Storage Unit Medium Matter Pod (0) Medium Matter Pod (0) Light Assault Rifle Light Assault Rifle Light Assault Rifle Light Assault Rifle Mining Laser Mining Laser Peak State ------------ > --- POWER ------------ Ion Engine > --- PROPULSION ------- Light Treads Light Treads > --- UTILITY ---------- Large Storage Unit Structural Scanner > --- WEAPON ----------- Assault Rifle Mining Claw > --- INVENTORY -------- Ion Engine Aluminum Leg Aluminum Leg Small Storage Unit Huge Storage Unit Medium Matter Pod Light Assault Rifle Light Assault Rifle Mining Laser Mining Laser [Rating: 8] Favorites ----------- Power Ion Engine Engine Ion Engine Propulsion Light Treads Treads Light Treads Leg Aluminum Leg Utility Structural Scanner Device Structural Scanner Storage Large Storage Unit Weapon Assault Rifle Ballistic Gun Assault Rifle Special Weapon Mining Laser Slashing Weapon Mining Claw Build | -11 -10 -10 ------- Run | Yrd Mat Min Slots Evolved . | . . . Power . | . . . Propulsion . | . . . Utility . | . . . Weapon . | . . . Parts Attached 18 | 7 10 1 Power 1 | 1 . . Engine 1 | 1 . . Core . | . . . Reactor . | . . . Propulsion 6 | 2 4 . Treads 4 | 2 2 . Leg 2 | . 2 . Wheel . | . . . Hover . | . . . Flight . | . . . Utility 5 | 1 4 . Device 1 | . 1 . Storage 4 | 1 3 . Processor . | . . . Hackware . | . . . Protection . | . . . Artifact . | . . . Weapon 6 | 3 2 1 Energy Gun . | . . . Energy Cannon . | . . . Ballistic Gun 4 | 3 . 1 Ballistic Cannon . | . . . Launcher . | . . . Special Weapon 1 | . 1 . Impact Weapon . | . . . Slashing Weapon 1 | . 1 . Piercing Weapon . | . . . Special Melee Weapon . | . . . Unidentified Prototypes . | . . . Parts Lost 4 | . . 4 Power 1 | . . 1 Propulsion 2 | . . 2 Utility . | . . . Weapon 1 | . . 1 Highest Loss Streak 4 | . . 4 To Critical Strikes . | . . . Average Slot Usage (%) 98 | . 97 99 Engine 13 | . 14 13 Treads 19 | . 10 28 Leg 8 | . 17 . Device 12 | . 11 14 Storage 14 | . 14 14 Ballistic Gun 14 | . 15 13 Special Weapon 1 | . 3 . Slashing Weapon 11 | . 9 14 Naked Turns . | . . . Heaviest Build 30 | 13 30 30 Greatest Support 40 | 40 40 40 Greatest Overweight (x) 7 | . . 7 Average Overweight (x) . | . . . Largest Inventory Capacity 25 | 8 25 15 Average Capacity 11 | 7 10 15 Most Carried 15 | 8 11 15 Average Carried 9 | 5 8 12 Final Capacity 15 | 8 15 15 Final Carried 15 | 6 11 15 Class Distribution -------------------- 100% | Mutant Dominant Class ---------------- Mutant | -10/Materials Mutant | -10/Mines Resources | -11 -10 -10 ----------- Run | Yrd Mat Min Matter Collected 358 | 270 . 88 Remotely . | . . . Salvage Created 72 | . . 72 Parts 9 | . . 9 Haulers Intercepted . | . . . Recyclers Shooed . | . . . Parts Field Recycled . | . . . Retrieved Matter . | . . . Parts Self-Destructed . | . . . Prevented . | . . . Kills | -11 -10 -10 ------- Run | Yrd Mat Min Combat Hostiles Destroyed 5 | . . 5 Guns 5 | . . 5 Classes Destroyed 1 | . . 1 Swarmer 5 | . . 5 Best Kill Streak 3 | . . 3 Combat Bots Only 3 | . . 3 Max Kills in Single Turn 1 | . . 1 Gunslinging . | . . . Exploded . | . . . Melee . | . . . Uniques/NPCs Destroyed . | . . . Combat | -11 -10 -10 -------- Run | Yrd Mat Min Hostile Shots Fired 65 | . . 65 Missed 15 | . . 15 Damage Taken 751 | . 38 713 Core 263 | . . 263 Absorbed by Shields . | . . . Core Remaining (%) 100 | 100 . . Volleys Fired 26 | . . 26 Largest 1 | . . 1 Hottest 20 | . . 20 Shots Fired 26 | . . 26 Gun 26 | . . 26 Cannon . | . . . Launcher . | . . . Special . | . . . Kinetic 26 | . . 26 Thermal . | . . . Explosive . | . . . Electromagnetic . | . . . Robot Hit Streak 8 | . . 8 Robot Miss Streak 3 | . . 3 Penetration Max . | . . . Secondary Targets . | . . . Shots Hit Robots 16 | . . 16 Core Hits 5 | . . 5 Critical Kills . | . . . Critical Parts Destroyed . | . . . Critical Strikes . | . . . Melee Attacks 3 | . 2 1 Impact . | . . . Slashing 3 | . 2 1 Piercing . | . . . Sneak Attacks 1 | . . 1 Combat Hostiles . | . . . Follow-up Attacks . | . . . Damage Inflicted 239 | . . 239 Guns 191 | . . 191 Cannons . | . . . Explosions . | . . . Melee 48 | . . 48 Ramming . | . . . Kinetic 191 | . . 191 Thermal . | . . . Explosive . | . . . Electromagnetic . | . . . Impact . | . . . Slashing 48 | . . 48 Piercing . | . . . Highest Corruption 1 | . 1 1 Average Corruption 1 | . 1 1 Corruption Purged . | . . . Corruption Blocked . | . . . Effects 5 | . 2 3 Matter Fused 3 | . 1 2 Energy Discharges 1 | . . 1 Data Loss (minor) 1 | . 1 . Overload Shots . | . . . Overflow Damage 23 | . . 23 Projectiles . | . . . Explosions . | . . . Melee 23 | . . 23 Knockbacks . | . . . Impact . | . . . Kinetic . | . . . Secondary . | . . . Self-Inflicted Damage . | . . . Shots . | . . . Rammed . | . . . Targets Rammed . | . . . Kicked . | . . . Crushed . | . . . Highest Temperature 2 | . . 2 Average Temperature 2 | . . 2 Received Heat Transfer 20 | . . 20 Siege Activations . | . . . Robots Corrupted . | . . . Combat Hostiles . | . . . Parts Fried . | . . . Impact Corruptions . | . . . Robots Melted . | . . . Combat Hostiles . | . . . Parts Melted . | . . . Heat Transferred . | . . . Parts Sabotaged . | . . . Parts Stolen . | . . . Parts Stripped . | . . . Power Chain Reactions . | . . . Alert | -11 -10 -10 ------- Run | Yrd Mat Min Peak Influence 121 | . 6 121 Initial 1 | . . 1 Average 29 | . 3 65 Maximum Alert Level . | . . . Low Security (%) 100 | 100 100 100 Level 1 . | . . . Level 2 . | . . . Level 3 . | . . . Level 4 . | . . . Level 5 . | . . . High Security . | . . . Max Security . | . . . Squads Dispatched . | . . . Investigation . | . . . Extermination . | . . . Reinforcement . | . . . Assault . | . . . Garrison . | . . . Intercept . | . . . Searches Triggered . | . . . Construction Impeded . | . . . Haulers Reinforced . | . . . Active Scanning Responses . | . . . Cargo Convoy Interrupts . | . . . Stealth | -11 -10 -10 --------- Run | Yrd Mat Min Distress Signals . | . . . Communications Jammed . | . . . Distress Signals . | . . . Times Spotted 19 | . . 19 Peak Tracking Total 10 | . . 10 Tactical Retreats . | . . . Traps | -11 -10 -10 ------- Run | Yrd Mat Min Traps Triggered 2 | . 2 . Indirectly . | . . . Trap Hack Attempts . | . . . Triggered . | . . . Disarmed . | . . . Reprogrammed . | . . . Reused . | . . . Traps Extracted . | . . . Installed . | . . . Triggered . | . . . Machines | -11 -10 -10 ---------- Run | Yrd Mat Min Machines Disabled . | . . . Max in Single Turn . | . . . Machines Repaired . | . . . Machines Dismantled . | . . . Machines Sabotaged . | . . . Overloaded Fab Kills . | . . . Hacking | -11 -10 -10 --------- Run | Yrd Mat Min Machines Accessed 5 | . 4 1 Terminals 4 | . 3 1 Fabricators . | . . . Repair Stations . | . . . Recycling Units 1 | . 1 . Scanalyzers . | . . . Garrison Access . | . . . Total Hacks 6 | . 5 1 Successful 3 | . 3 . Failed 3 | . 2 1 Catastrophic . | . . . Database Lockouts . | . . . Manual . | . . . Terminals 4 | . 3 1 Fabricators . | . . . Repair Stations . | . . . Recycling Units 2 | . 2 . Scanalyzers . | . . . Garrison Access . | . . . Terminal Hacks 2 | . 2 . Dispatch Records 1 | . 1 . Zone Layout 1 | . 1 . Fabricator Hacks . | . . . Repair Station Hacks . | . . . Recycling Unit Hacks 1 | . 1 . Process 1 | . 1 . Scanalyzer . | . . . Garrison Access Hacks . | . . . Unauthorized Hacks . | . . . Terminals . | . . . Fabricators . | . . . Repair Stations . | . . . Recycling Units . | . . . Scanalyzers . | . . . Garrison Access . | . . . Data Cores Recovered . | . . . Used . | . . . Hacking Detections 2 | . 2 . Full Trace Events . | . . . Feedback Events . | . . . Feedback Blocked . | . . . Robot Schematics Acquired . | . . . Robots Built . | . . . Authchips . | . . . Time . | . . . Total Robot Build Rating . | . . . Part Schematics Acquired . | . . . Parts Built . | . . . Authchips . | . . . Time . | . . . Total Part Build Rating . | . . . Parts Repaired . | . . . Time . | . . . Parts Recycled . | . . . Recycled Matter 7 | . 7 . Retrieved Matter . | . . . Retrieved Components . | . . . Parts Scanalyzed . | . . . Part Schematics Acquired . | . . . Parts Damaged . | . . . Bothacking | -11 -10 -10 ------------ Run | Yrd Mat Min Used RIF Installer . | . . . Robots Hacked . | . . . Non-combat . | . . . Combat . | . . . Robot Hacks Applied . | . . . Relay Couplers Released . | . . . Fabnet Peak Effective % . | . . . Robots Rewired . | . . . Allies Hacked . | . . . Hacks Repelled . | . . . Allies | -11 -10 -10 -------- Run | Yrd Mat Min Total Allies . | . . . Largest Group . | . . . Highest-Rated Group . | . . . Highest-Rated Ally . | . . . Total Orders . | . . . Ally Attacks . | . . . Total Damage . | . . . Kills . | . . . Allies Corrupted . | . . . Allies Melted . | . . . Intel | -11 -10 -10 ------- Run | Yrd Mat Min Robot Analysis Total . | . . . Derelict Logs Recovered . | . . . Drone Launches . | . . . Drone Recoveries . | . . . Exploration | -11 -10 -10 ------------- Run | Yrd Mat Min Turns Passed 826 | 118 355 353 Spaces Moved 495 | 69 245 181 Core 9 | 8 . 1 Treads 319 | 61 78 180 Legs 167 | . 167 . Wheels . | . . . Hover . | . . . Flight . | . . . Fastest Speed 50 | 50 120 160 Average Speed 145 | 147 132 161 Slowest Speed 400 | 160 160 400 Overloaded Moves . | . . . Propulsion Burnouts . | . . . Robots Hopped . | . . . Cave-ins Triggered . | . . . Exploration Rate (%) 22 | 5 32 31 Regions Visited 2 Branch Regions 1 Pre-discovered Areas 1 | . . 1 Known Exits Taken . | . . . Unknown Exits Taken 2 | 1 1 . Scrap Searched . | . . . Spaces Dug 1 | . 1 . Terrain Destroyed 1 | . 1 . Melee 1 | . 1 . Projectile . | . . . AOE . | . . . Terrain Rammed . | . . . Walls Destroyed . | . . . Machines Disabled . | . . . Actions | -11 -10 -10 --------- Run | Yrd Mat Min Total 564 | 83 267 214 Wait . | . . . Move 493 | 68 244 181 Hop . | . . . Pick Up 20 | 8 8 4 Fast Attach 5 | 4 1 . Attach 3 | 2 . 1 Detach 1 | . . 1 Swap 10 | 1 9 . Drop 3 | . 3 . Fire 26 | . . 26 Melee 3 | . 2 1 Ram . | . . . Kick . | . . . Crush . | . . . Escape Stasis . | . . . Rewire . | . . . Trap . | . . . Miscellaneous . | . . . Route ------- -11/Scrapyard -10/Materials (discovered 2 exits: [*Mat] / *Min) -10/Mines History --------- Turn | Location | Event 11 | -11/Scrapyard | Discovered new exit (range 16) 119 | -11/Scrapyard | Entered Materials 300 | -10/Materials | Discovered new exit (range 5) 304 | -10/Materials | Build established: Mutant 369 | -10/Materials | Discovered new exit (range 9) 474 | -10/Materials | Entered Mines 507 | -10/Mines | Learned location of Storage (-7) 766 | -10/Mines | Assembled infested the area 771 | -10/Mines | Assisted by a Guerilla fighting off Assembled 826 | -10/Mines | Core integrity fell below 50% 826 | -10/Mines | Core integrity fell below 20% 827 | -10/Mines | Destroyed by D-53 Grenadier with Mini Grenade Launcher Last Messages --------------- as-32379 destroyed. HV Slug penetrates Wall. R-06 Scavenger destroyed. HV Slug penetrates Wall. as-08890 destroyed. HV Slug penetrates Wall. C-30 ARC bursts open, deploying its payload. D-53 Grenadier unfolds itself. as-55263 destroyed. as-54821 destroyed. as-18287 destroyed. as-59173 destroyed. as-57349 destroyed. as-53565 destroyed. as-82516 destroyed. as-94827 destroyed. Ion Engine destroyed. Assault Rifle destroyed. P3-Q8H(h) destroyed. Lgt. Treads destroyed. Map ----- +----------------------------------------------------+ | ????????######## ##????????????????????? | | ????????### #### ##????????????????????? | | ????????## ## ##????????????????????? | | ????????## ### ####????????????????????? | | ????????### ## ################????????? | | ????????### # ##############????????? | | ????####### ##????????? | | ???####### ## # ########### ##????????? | | ??#### #### ########### ##????????? | | ??### #### ########?## ##????????? | | ??## ##### ############ ##????????? | | ??## ############## ##### ##????????? | | ??### ##?########### ##????????? | | ??#### ############# #### ##????????? | | ???##### ###### ### #### ??????? | | ????########### #########??????? | | ??????######## ##########??????? | | ????????????### ####????????????? | | ????????????#### ####???????????? | | ?????????????### ###???????????? | | ?????????????## ##???????????? | | ?????????????## ##???????????? | | ????????????### ### ## ???????????? | | ????????????### ######## ???????????? | | ????????????## #######????????????? | | ????????????## @ ###?????????????????? | | ????????????## ###?????????????????? | | ????????????## ####????????????????? | | ????????????## * ####### ##?????????? | | ????????????## ###### ##?????????? | | ????????????### dd "%" ##?????????? | | ????????????### ########?????????? | | ????????????### ########?????????? | | ???????????? # t ##???????????????? | | ???????????### ###???????????????? | | ??????????? "# % ####???????????????? | | ???????????## ###????????????????? | | ???????????## a ###?????????????????? | | ??????????? # ;#####?????????????????? | | ??????????# # ## #######??????????????????? | | ??????####### #########??????????????????? | | ?????### ## ######## ???? #???????????? | | ????### ##???????????? | | ???### #####???????????? | | ??### ########### ###??????????????? | | ?### ############ ###??????????????? | | ?## ##????????????????????????????? | | ?## ??????????????????????????????? | | ?## ??????????????????????????????? | | ?# ??????????????????????????????? | +----------------------------------------------------+ Best States ------------- Heat Dissipation 25 Energy Generation 10 Energy Capacity 250 Matter Stores 300 Matter Capacity 300 Sight Range 16 Terrain Scan Density 10 Evasion (%) 55 Recoil Reduction 2 Item Schematics ----------------- None Robot Schematics ------------------ None Fabricated ------------ Nothing Alien Tech Used ----------------- None Achievements -------------- None Challenges ------------ None Game ------ Seed WaveArchitectArchive Manual? 0 Play Time 00:10:19 Cumulative 3.5 hours Start 2024.04.03 @ 15:40:35 End 2024.04.03 @ 15:48:13 Sessions 1 Manual Loads 0 Difficulty Rogue Special Mode None Game No. 8 Rogue 8 Adventurer 0 Explorer 0 Win Type - Total 0 Types 0/0/0/0/0/0/0/0/0 Lore% 3 Gallery% 9 Achievement% 7 Wizard Run 0 Options --------- Layout 1 ASCII 0 Keyboard 1 Movement Arrows Keybinds 0 Fullscreen 1 Font 24/Smallcaps Map View 50x35 Zoom Use 0% Tactical HUD 0 Map Filters NONE Filters NONE Steam 1 RUN: ad793c79-5f28-4a98-820c-3eb4ff4a8a00